Cogmind - Beta 15 @@@ ROGUE MODE // 2025.07.05 @ 08:59:21 Player: korgoth Result: Destroyed by Y-72 Warden with Quantum Rifle Performance ------------- Evolutions (7) 3500 Regions Visited (17) 3400 Robots Destroyed (42) 210 Value Destroyed (1753) 1753 Prototype IDs (9) 180 Alien Tech Used (0) 0 Bonus (881) 881 TOTAL SCORE: 9924 Bonus ------- Follower Combat Kills 281 Met Imprinter 300 Was Imprinted 300 Cogmind --------- Core Integrity 0/1300 Matter 240/300 Energy 100/100 System Corruption 2% Temperature Cool (9) Movement Core (50) Location -3/Armory Parts ------- > --- POWER (2) -------- (None) > --- PROPULSION (5) --- (None) > --- UTILITY (11) ----- (None) > --- WEAPON (3) ------- (None) > --- INVENTORY (5) ---- Micro Nuclear Core Micro Nuclear Core Improved Surge Thruster Improved Surge Thruster Gravity Neutralizer Peak State ------------ > --- POWER ------------ Micro Nuclear Core > --- PROPULSION ------- Gravmag System Cooled Aerolev Unit Cooled Aerolev Unit Cooled Aerolev Unit Antigrav System > --- UTILITY ---------- Improved Signal Interpreter Improved Targeting Computer Advanced Targeting Computer Advanced Targeting Computer Advanced Target Analyzer Improved Medium Armor Plating Hacking Suite System Shield Mapping Drone Bay > --- WEAPON ----------- Matter Neutralizer Hardcell Cannon > --- INVENTORY -------- Mapping Drone Bay Mapping Drone Bay Tesla Rifle Scythe [Rating: 82] Favorites ----------- Power Micro Nuclear Core Engine Light Ion Engine Power Core Micro Nuclear Core Propulsion Cooled Aerolev Unit Treads Light Treads Leg Advanced VSS Leg Hover Unit Cooled Aerolev Unit Flight Unit VTOL Module Utility Hacking Suite Device ECM Suite Storage Medium Storage Unit Processor Advanced Targeting Computer Hackware Hacking Suite Protection Improved Medium Armor Plating Weapon Hardcell Cannon Energy Gun Force Rifle Energy Cannon Cooled Particle Cannon Ballistic Gun Assault Rifle Ballistic Cannon Hardcell Cannon Launcher Grenade Launcher Slashing Weapon Scythe Piercing Weapon Enhanced Force Lance Build | -11 -10 -10 -9 -9 -7 -6 -6 -6 -6 -5 -5 -5 -4 -4 -4 -3 -3 ------- Run | Yrd Mat Min Mat Min Zio Pro Fac Was Fac Fac Upp Upp Fac Upp Upp Res Arm Slots Evolved 14 | . . . 2 . . . 6 . . 2 . . 2 . . 2 . Power 1 | . . . . . . . . . . . . . . . . 1 . Propulsion 3 | . . . . . . . 2 . . 1 . . . . . . . Utility 9 | . . . 2 . . . 4 . . 1 . . 2 . . . . Weapon 1 | . . . . . . . . . . . . . . . . 1 . Parts Attached 108 | 6 3 . 14 3 2 1 8 3 26 5 8 7 5 1 8 2 6 Power 12 | 1 . . 2 1 . . 2 1 2 . . 1 . . 2 . . Engine 5 | 1 . . 1 1 . . . 1 1 . . . . . . . . Core 7 | . . . 1 . . . 2 . 1 . . 1 . . 2 . . Reactor . | . . . . . . . . . . . . . . . . . . Propulsion 25 | 2 . . 4 1 1 . 2 1 6 1 1 2 . . 2 . 2 Treads 4 | 2 . . 1 . . . 1 . . . . . . . . . . Leg 4 | . . . . . . . . . . . . . . . 2 . 2 Wheel . | . . . . . . . . . . . . . . . . . . Hover 10 | . . . . . . . . . 6 1 1 2 . . . . . Flight 7 | . . . 3 1 1 . 1 1 . . . . . . . . . Utility 44 | 1 1 . 7 . . . 4 . 14 2 4 2 4 . 2 1 2 Device 18 | . 1 . 3 . . . 3 . 4 . 1 . 1 . 2 1 2 Storage 5 | 1 . . . . . . 1 . 1 . . 1 1 . . . . Processor 7 | . . . . . . . . . 2 2 1 1 1 . . . . Hackware 11 | . . . 4 . . . . . 5 . 1 . 1 . . . . Protection 3 | . . . . . . . . . 2 . 1 . . . . . . Artifact . | . . . . . . . . . . . . . . . . . . Weapon 27 | 2 2 . 1 1 1 1 . 1 4 2 3 2 1 1 2 1 2 Energy Gun 7 | 2 . . 1 . . . . . 2 . 2 . . . . . . Energy Cannon 5 | . . . . . . . . . 1 2 . 1 . . 1 . . Ballistic Gun 8 | . 1 . . 1 . 1 . . 1 . 1 . 1 1 . . 1 Ballistic Cannon 3 | . 1 . . . . . . 1 . . . 1 . . . . . Launcher 1 | . . . . . 1 . . . . . . . . . . . . Special Weapon . | . . . . . . . . . . . . . . . . . . Impact Weapon . | . . . . . . . . . . . . . . . . . . Slashing Weapon 2 | . . . . . . . . . . . . . . . 1 1 . Piercing Weapon 1 | . . . . . . . . . . . . . . . . . 1 Special Melee Weapon . | . . . . . . . . . . . . . . . . . . Unidentified Prototypes 9 | . . . . . . . 2 1 3 . . . 2 . . 1 . Parts Lost 56 | . . . 4 . . 1 11 1 1 1 7 4 . 2 22 . 2 Power 6 | . . . 1 . . 1 2 . . . . . . . 2 . . Propulsion 16 | . . . 1 . . . 4 . . . 1 4 . . 5 . 1 Utility 24 | . . . 1 . . . 3 1 1 1 4 . . 1 11 . 1 Weapon 10 | . . . 1 . . . 2 . . . 2 . . 1 4 . . Highest Loss Streak 22 | . . . 3 . . 1 11 12 1 1 5 2 . 2 22 . 1 To Critical Strikes . | . . . . . . . . . . . . . . . . . . Average Backups 5 | 1 3 6 6 4 4 4 2 3 4 4 3 4 3 9 4 3 4 Power . | . 1 2 1 . . . . 1 . 1 1 . . 1 . . . Propulsion 1 | . . . 1 3 2 1 . . 2 1 . . . 2 . . 1 Utility 1 | . . 1 1 . 2 3 1 1 1 1 . 1 . 1 . 1 . Weapon 1 | . 1 3 2 . . . . . . . 1 1 3 4 2 1 2 Tool/Special . | . . . . . . . . . . . . . . . . . . Unused Backups 20 | 1 . . 4 . . 1 . 1 4 1 3 3 . . . . 2 Power 4 | . . . 1 . . . . . 2 . 1 . . . . . . Propulsion 2 | . . . . . . 1 . . 1 . . . . . . . . Utility 6 | . . . . . . . . 1 . 1 . 3 . . . . 1 Weapon 8 | 1 . . 3 . . . . . 1 . 2 . . . . . 1 Tool/Special . | . . . . . . . . . . . . . . . . . . Average Slot Usage (%) 82 | . 98 100 88 98 100 98 58 4 86 99 87 91 88 85 60 2 5 Engine 4 | . 14 14 7 11 11 9 . . 4 . . . . . . . . Core 2 | . . . 3 . . . 5 . 1 5 5 5 5 5 2 . . Treads 2 | . 28 28 14 . . . 1 . . . . . . . . . . Hover 11 | . . . . . . . . . 24 29 28 21 15 15 5 . . Flight 4 | . . . 6 22 22 22 10 . . . . . . . . . . Device 3 | . 12 14 15 . . . 3 . 5 . 1 4 4 1 3 1 3 Storage 3 | . 14 14 7 . . . 1 1 2 . . . 5 5 4 . . Processor 12 | . . . . . . . . . 12 16 20 27 28 26 19 . . Hackware 18 | . . . 12 44 44 44 25 2 17 29 15 11 13 15 12 . . Protection 2 | . . . . . . . . . 4 5 2 5 4 5 1 . . Energy Gun 2 | . 16 . 6 11 1 . . . 5 4 3 1 . . . . . Energy Cannon 1 | . . . . . . . . . 3 5 2 3 2 . 1 . . Ballistic Gun 5 | . 6 14 3 9 11 18 8 . . . 3 . 2 4 1 . . Ballistic Cannon 2 | . 5 14 9 . . . . . 1 . . 3 5 5 2 . . Launcher 1 | . . . . . 9 3 . . . . . . . . . . . Peak Build Rating 82 | 6 7 8 22 19 21 23 41 13 73 80 77 82 81 81 73 12 23 Average Rating 47 | 4 6 7 12 18 19 22 26 3 62 78 68 72 76 74 47 5 9 On Entrance 31 | . 6 7 8 19 19 21 22 8 3 69 74 72 64 81 73 . 12 Naked Turns 220 | . . . . . . . . 73 33 . . . . . 18 57 39 Heaviest Build 46 | 13 17 17 22 8 8 8 16 5 37 31 31 43 46 42 38 2 8 Greatest Support 50 | 40 40 40 40 8 8 8 28 3 36 45 45 49 31 31 36 15 50 Greatest Overweight (x) 5 | . . . 5 . . . 1 1 1 . . 1 1 1 3 . 2 Average Overweight (x) . | . . . . . . . . . . . . . 1 1 . . . Largest Inventory Capacity 10 | 8 8 8 8 5 5 5 8 8 5 5 5 10 10 10 10 5 5 Average Capacity 6 | 7 8 8 7 5 5 5 5 5 5 5 5 5 10 10 9 5 5 Most Carried 10 | 5 6 8 8 5 5 5 5 5 5 5 5 5 7 10 10 5 5 Average Carried 5 | 1 3 6 6 4 4 4 2 3 4 4 3 4 3 9 4 4 4 Final Capacity 10 | 8 8 8 5 5 5 5 8 5 5 5 5 10 10 10 5 5 5 Final Carried 10 | 1 6 8 5 4 5 5 2 5 5 4 4 3 7 10 1 5 5 Class Distribution -------------------- 62% | Hacker-Mutant 25% | Mutant 11% | Hacker-Sprinter Dominant Class ---------------- Mutant | -10/Materials Mutant | -10/Mines Mutant | -9/Materials Hacker-Mutant | -9/Mines Hacker-Mutant | -7/Zion Hacker-Sprinter | -6/Proximity Caves Hacker-Mutant | -6/Factory Mutant | -6/Waste Hacker-Mutant | -6/Factory Hacker-Mutant | -5/Factory Hacker-Mutant | -5/Upper Caves Hacker-Mutant | -5/Upper Caves Hacker-Mutant | -4/Factory Hacker-Mutant | -4/Upper Caves Hacker-Mutant | -4/Upper Caves Mutant | -3/Research Mutant | -3/Armory Resources | -11 -10 -10 -9 -9 -7 -6 -6 -6 -6 -5 -5 -5 -4 -4 -4 -3 -3 ----------- Run | Yrd Mat Min Mat Min Zio Pro Fac Was Fac Fac Upp Upp Fac Upp Upp Res Arm Matter Collected 1521 | 253 65 . 115 58 41 40 45 . 419 . 130 105 . 169 23 . 58 Remotely . | . . . . . . . . . . . . . . . . . . Salvage Created 1626 | . 173 . 64 . . 85 45 . 549 . 168 225 . 193 8 . 116 Parts 88 | . 8 . 11 . . 5 4 . 35 . 4 5 . 8 . . 8 Haulers Intercepted . | . . . . . . . . . . . . . . . . . . Recyclers Shooed . | . . . . . . . . . . . . . . . . . . Parts Field Recycled . | . . . . . . . . . . . . . . . . . . Retrieved Matter . | . . . . . . . . . . . . . . . . . . Parts Self-Destructed 33 | . . . . . . 12 . . . . 12 2 . 7 . . . Prevented 9 | . . . . . . 5 . . . . 4 . . . . . . Kills | -11 -10 -10 -9 -9 -7 -6 -6 -6 -6 -5 -5 -5 -4 -4 -4 -3 -3 ------- Run | Yrd Mat Min Mat Min Zio Pro Fac Was Fac Fac Upp Upp Fac Upp Upp Res Arm Combat Hostiles Destroyed 40 | . 4 . 4 . . 2 1 . 10 . 4 4 . 7 1 . 3 Melee 1 | . . . . . . . . . . . . . . . . . 1 Guns 20 | . 2 . 1 . . 2 1 . 7 . 1 1 . 4 1 . . Cannons 16 | . 2 . 3 . . . . . 3 . 3 2 . 3 . . . AOE 2 | . . . . . . . . . . . . . . . . . 2 Classes Destroyed 8 | . 1 . 2 . . 1 . . 3 . . . . . . . 1 Worker 1 | . . . . . . . . . 1 . . . . . . . . Watcher 1 | . . . . . . . . . 1 . . . . . . . . Swarmer 16 | . . . 3 . . . . . 4 . 2 . . 6 1 . . Cutter 2 | . . . . . . . . . . . . . . . . . 2 Grunt 8 | . 4 . . . . 1 . . 2 . . . . . . . 1 Sentry 3 | . . . 1 . . . . . . . . 1 . 1 . . . Hunter 4 | . . . . . . . . . 2 . 2 . . . . . . Programmer 7 | . . . . . . 1 1 . 2 . . 3 . . . . . Best Kill Streak 4 | . 2 . 2 . . 1 1 . 3 . 2 2 . 4 1 . 3 Combat Bots Only 4 | . 2 . 2 . . 1 1 . 3 . 2 2 . 4 1 . 3 Max Kills in Single Turn 2 | . 1 . 1 . . 1 1 . 2 . 1 1 . 1 1 . 2 Gunslinging . | . . . . . . . . . . . . . . . . . . Exploded 2 | . . . . . . . . . . . . . . . . . 2 Melee 1 | . . . . . . . . . . . . . . . . . 1 Uniques/NPCs Destroyed . | . . . . . . . . . . . . . . . . . . Combat | -11 -10 -10 -9 -9 -7 -6 -6 -6 -6 -5 -5 -5 -4 -4 -4 -3 -3 -------- Run | Yrd Mat Min Mat Min Zio Pro Fac Was Fac Fac Upp Upp Fac Upp Upp Res Arm Hostile Shots Fired 859 | . 17 13 43 6 . 11 227 5 88 9 85 27 . 38 170 4 116 Missed 290 | . 2 5 10 5 . 6 94 2 25 2 27 9 . 13 49 2 39 Hits 569 | . 15 8 33 1 . 5 133 3 63 7 58 18 . 25 121 2 77 Melee 58 | . . . . . . . . 3 . . . . . . 14 . 41 Projectile 511 | . 15 8 33 1 . 5 133 . 63 7 58 18 . 25 107 2 36 AOE 2 | . . . . . . . . . . . . . . . . . 2 Critical Strikes 31 | . 1 . . . . . 2 3 . . 1 1 . . 9 . 14 Part Disruptions 1 | . . . . . . . . . . . . 1 . . . . . Damage Taken 9140 | . 196 60 385 11 . 87 1207 161 860 145 1042 320 . 410 2438 45 1773 Core 3484 | . 32 17 69 . . . 502 161 99 25 227 60 . 29 956 22 1285 Absorbed by Shields 6 | . . . . . . . . . 6 . . . . . . . . Regen/Repaired (Parts) 55 | . . . . . 55 . . . . . . . . . . . . Core Remaining (%) 59 | 100 . 80 . . . 82 . . 10 . . 68 . . 14 . . Volleys Fired 112 | . 12 . 13 . . 4 10 . 25 . 17 8 . 11 10 . 2 Largest 2 | . 2 . 2 . . 2 2 . 2 . 2 2 . 2 2 . 1 Hottest 160 | . 90 . 95 . . 48 48 . 110 . 120 160 . 120 160 . 35 Shots Fired 199 | . 24 . 18 . . 7 18 . 44 . 34 15 . 22 15 . 2 Gun 111 | . 20 . 7 . . 7 18 . 27 . 10 5 . 11 4 . 2 Cannon 88 | . 4 . 11 . . . . . 17 . 24 10 . 11 11 . . Launcher . | . . . . . . . . . . . . . . . . . . Special . | . . . . . . . . . . . . . . . . . . Kinetic 91 | . 8 . 11 . . 7 18 . 1 . 5 8 . 21 10 . 2 Thermal 100 | . 16 . 7 . . . . . 43 . 24 5 . . 5 . . Explosive . | . . . . . . . . . . . . . . . . . . Electromagnetic 8 | . . . . . . . . . . . 5 2 . 1 . . . Robot Hit Streak 13 | . 7 . 3 . . 8 5 . 7 . 5 6 . 13 4 . 5 Robot Miss Streak 6 | . 3 . 4 . . . 6 . 2 . 3 1 . 1 2 . . Penetration Max . | . . . . . . . . . . . . . . . . . . Secondary Targets 1 | . 1 . . . . . . . . . . . . . . . . Max Gunslinging Chain 1 | . 1 . . . . . . . . . . . . . . . . Shots Hit Robots 122 | . 15 . 10 . . 6 7 . 28 . 17 11 . 16 9 . 3 Core Hits 61 | . 8 . 4 . . 3 3 . 16 . 6 5 . 8 4 . 4 Critical Kills 4 | . . . . . . . . . . . . 2 . 2 . . . Critical Parts Destroyed 7 | . . . . . . . . . 3 . 2 1 . 1 . . . Critical Strikes 14 | . . . 2 . . . . . 3 . 2 3 . 4 . . . Burn 1 | . . . 1 . . . . . . . . . . . . . . Meltdown 1 | . . . . . . . . . . . . 1 . . . . . Destroy 10 | . . . . . . . . . 3 . 2 2 . 3 . . . Blast 2 | . . . 1 . . . . . . . . . . 1 . . . Melee Attacks 6 | . . . . . . . . . . . . . . . . 3 3 Impact . | . . . . . . . . . . . . . . . . . . Slashing 3 | . . . . . . . . . . . . . . . . 3 . Piercing 3 | . . . . . . . . . . . . . . . . . 3 Sneak Attacks . | . . . . . . . . . . . . . . . . . . Combat Hostiles . | . . . . . . . . . . . . . . . . . . Follow-up Attacks . | . . . . . . . . . . . . . . . . . . Damage Inflicted 3035 | . 199 . 168 . . 96 120 . 771 . 451 349 . 470 309 . 102 Guns 1411 | . 145 . 63 . . 96 120 . 465 . 110 22 . 278 69 . 43 Cannons 1543 | . 54 . 105 . . . . . 306 . 341 327 . 192 218 . . Explosions . | . . . . . . . . . . . . . . . . . . Melee 45 | . . . . . . . . . . . . . . . . . 45 Ramming 36 | . . . . . . . . . . . . . . . 22 . 14 Kinetic 1268 | . 90 . 105 . . 96 120 . 22 . 9 153 . 448 182 . 43 Thermal 1563 | . 109 . 63 . . . . . 749 . 341 196 . . 105 . . Explosive . | . . . . . . . . . . . . . . . . . . Electromagnetic 123 | . . . . . . . . . . . 101 . . 22 . . . Impact . | . . . . . . . . . . . . . . . . . . Slashing . | . . . . . . . . . . . . . . . . . . Piercing 45 | . . . . . . . . . . . . . . . . . 45 Highest Corruption 9 | . . . . . . . 1 6 8 . . 1 . . 9 . 2 Average Corruption 4 | . . . . . . . 1 5 7 . . 1 . . 9 . 2 Corruption Purged . | . . . . . . . . . . . . . . . . . . Corruption Blocked . | . . . . . . . . . . . . . . . . . . Effects 29 | . . . . . . . 1 1 25 . . . . . 1 . 1 Message Errors 8 | . . . . . . . . . 6 . . . . . 1 . 1 Matter Fused 4 | . . . . . . . . . 4 . . . . . . . . Heat Flow Errors 3 | . . . . . . . 1 . 2 . . . . . . . . Energy Discharges 3 | . . . . . . . . . 3 . . . . . . . . Parts Rejected 1 | . . . . . . . . . 1 . . . . . . . . Data Loss (minor) 6 | . . . . . . . . 1 5 . . . . . . . . Misfires 3 | . . . . . . . . . 3 . . . . . . . . Weapon Failures 1 | . . . . . . . . . 1 . . . . . . . . Overload Shots . | . . . . . . . . . . . . . . . . . . Overflow Damage 36 | . . . . . . . . . 5 . 31 . . . . . . Projectiles 36 | . . . . . . . . . 5 . 31 . . . . . . Explosions . | . . . . . . . . . . . . . . . . . . Melee . | . . . . . . . . . . . . . . . . . . Knockbacks 4 | . . . . . . . . . . . . . . 1 3 . . Impact . | . . . . . . . . . . . . . . . . . . Kinetic 4 | . . . . . . . . . . . . . . 1 3 . . Secondary . | . . . . . . . . . . . . . . . . . . Self-Inflicted Damage 9 | . . . . . . . . . . . . . . . 4 . 5 Shots . | . . . . . . . . . . . . . . . . . . Rammed 9 | . . . . . . . . . . . . . . . 5 . 4 Targets Rammed 11 | . . . . . . . . . . . . . . . 7 . 4 Kicked 2 | . . . . . . . . . . . . . . . 2 . . Crushed . | . . . . . . . . . . . . . . . . . . Highest Temperature 358 | . 166 . 114 . . 8 112 . 358 . 242 261 . 33 84 . . Average Temperature 74 | . 59 . 45 . . 5 29 . 103 . 95 98 . 5 35 . . Received Heat Transfer 1421 | . 129 . 81 6 . 12 378 . 81 48 90 18 . . 304 . 274 Effects 3 | . . . . . . . . . 3 . . . . . . . . Energy Bleed 1 | . . . . . . . . . 1 . . . . . . . . Interference 2 | . . . . . . . . . 2 . . . . . . . . Siege Activations . | . . . . . . . . . . . . . . . . . . Martial Activations . | . . . . . . . . . . . . . . . . . . Shielding Activations . | . . . . . . . . . . . . . . . . . . Robots Disrupted . | . . . . . . . . . . . . . . . . . . Combat Hostiles . | . . . . . . . . . . . . . . . . . . Robots Corrupted . | . . . . . . . . . . . . . . . . . . Combat Hostiles . | . . . . . . . . . . . . . . . . . . Parts Fried 3 | . . . . . . . . . . . 3 . . . . . . Impact Corruptions . | . . . . . . . . . . . . . . . . . . Robots Melted 1 | . . . . . . . . . . . . 1 . . . . . Combat Hostiles 1 | . . . . . . . . . . . . 1 . . . . . Parts Melted 5 | . . . . . . . . . 2 . . 3 . . . . . Heat Transferred 2271 | . 273 . 222 . . . . . 1073 . 407 185 . . 111 . . Parts Sabotaged . | . . . . . . . . . . . . . . . . . . Parts Stolen . | . . . . . . . . . . . . . . . . . . Parts Stripped . | . . . . . . . . . . . . . . . . . . Power Chain Reactions . | . . . . . . . . . . . . . . . . . . Alert | -11 -10 -10 -9 -9 -7 -6 -6 -6 -6 -5 -5 -5 -4 -4 -4 -3 -3 ------- Run | Yrd Mat Min Mat Min Zio Pro Fac Was Fac Fac Upp Upp Fac Upp Upp Res Arm Maximum Alert Level 1 | . . . . . . . . . 1 . . . . . . . . Low Security (%) 94 | 100 100 100 100 100 . . 100 100 82 100 . . 100 . . 100 100 Level 1 5 | . . . . . . . . . 17 . . . . . . . . Level 2 . | . . . . . . . . . . . . . . . . . . Level 3 . | . . . . . . . . . . . . . . . . . . Level 4 . | . . . . . . . . . . . . . . . . . . Level 5 . | . . . . . . . . . . . . . . . . . . High Security . | . . . . . . . . . . . . . . . . . . Max Security . | . . . . . . . . . . . . . . . . . . Peak Influence 248 | . 50 3 65 42 . . 47 . 248 124 . . 2 . . . 130 Initial 104 | . . 3 . 22 . . 42 . . 104 . . 2 . . . . Average 37 | . 16 . 11 13 . . 21 . 87 64 . . . . . . 26 Influence Increases 1950 | . 100 . 148 30 . 367 90 . 435 120 165 115 . 150 20 . 210 Destroy 0b10 Robot/C 980 | . 80 . 80 . . 220 20 . 200 . 80 80 . 140 20 . 60 Destroy 0b10 Robot/NC 20 | . . . . . . 10 . . 10 . . . . . . . . Destroy Leader 162 | . 20 . 20 . . 30 10 . 42 . 10 20 . 10 . . . Allied During Kill 92 | . . . . . . 92 . . . . . . . . . . . Successful Hack 3 | . . . 3 . . . . . . . . . . . . . . Disable Machine 15 | . . . 15 . . . . . . . . . . . . . . Destroy Structure 3 | . . . . . . . . . 3 . . . . . . . . Partial Spotted 45 | . . . . . . . . . 30 . . . . . . . 15 Lose Combat Pursuer 630 | . . . 30 30 . 15 60 . 150 120 75 15 . . . . 135 Influence Decreases 1820 | . 90 10 90 88 . 300 157 . 222 229 259 120 5 150 20 . 80 Entered New Map 222 | . . 7 . 36 . . 25 . . 109 40 2 3 . . . . Time Decay 1236 | . 90 3 60 52 . 190 80 . 212 100 149 98 2 140 . . 60 Lost Part 252 | . . . 30 . . 10 52 . 10 10 70 20 . 10 20 . 20 Lost Ally 110 | . . . . . . 100 . . . 10 . . . . . . . Squads Dispatched 11 | . . . 1 . . . 1 . 3 . . . 1 . 1 . 4 Investigation 2 | . . . . . . . 1 . . . . . . . . . 1 Extermination 4 | . . . . . . . . . 2 . . . 1 . . . 1 Reinforcement 4 | . . . 1 . . . . . 1 . . . . . . . 2 Assault 1 | . . . . . . . . . . . . . . . 1 . . Garrison . | . . . . . . . . . . . . . . . . . . Intercept . | . . . . . . . . . . . . . . . . . . Searches Triggered . | . . . . . . . . . . . . . . . . . . Construction Impeded 1 | . . . . . . . . . 1 . . . . . . . . Haulers Reinforced . | . . . . . . . . . . . . . . . . . . Active Scanning Responses . | . . . . . . . . . . . . . . . . . . Cargo Convoy Interrupts . | . . . . . . . . . . . . . . . . . . Stealth | -11 -10 -10 -9 -9 -7 -6 -6 -6 -6 -5 -5 -5 -4 -4 -4 -3 -3 --------- Run | Yrd Mat Min Mat Min Zio Pro Fac Was Fac Fac Upp Upp Fac Upp Upp Res Arm Distress Signals 5 | . 1 . 1 . . . . . 3 . . . . . . . . Communications Jammed . | . . . . . . . . . . . . . . . . . . Distress Signals . | . . . . . . . . . . . . . . . . . . Times Spotted 155 | . 8 3 7 4 . 14 11 6 23 11 14 5 . 7 16 2 24 Peak Tracking Total 15 | . 3 3 3 2 . 4 6 6 5 10 7 2 . 4 15 2 11 Tactical Retreats 23 | . 2 1 1 1 . 1 3 . 6 1 3 1 . . . . 3 Traps | -11 -10 -10 -9 -9 -7 -6 -6 -6 -6 -5 -5 -5 -4 -4 -4 -3 -3 ------- Run | Yrd Mat Min Mat Min Zio Pro Fac Was Fac Fac Upp Upp Fac Upp Upp Res Arm Traps Triggered 7 | . . . . . . . 1 . 3 . . . . . . . 3 Indirectly . | . . . . . . . . . . . . . . . . . . Trap Hack Attempts . | . . . . . . . . . . . . . . . . . . Triggered . | . . . . . . . . . . . . . . . . . . Disarmed . | . . . . . . . . . . . . . . . . . . Reprogrammed . | . . . . . . . . . . . . . . . . . . Reused . | . . . . . . . . . . . . . . . . . . Traps Extracted . | . . . . . . . . . . . . . . . . . . Installed . | . . . . . . . . . . . . . . . . . . Triggered . | . . . . . . . . . . . . . . . . . . Machines | -11 -10 -10 -9 -9 -7 -6 -6 -6 -6 -5 -5 -5 -4 -4 -4 -3 -3 ---------- Run | Yrd Mat Min Mat Min Zio Pro Fac Was Fac Fac Upp Upp Fac Upp Upp Res Arm Machines Disabled 1 | . . . 1 . . . . . . . . . . . . . . Max in Single Turn 1 | . . . 1 . . . . . . . . . . . . . . Machines Repaired . | . . . . . . . . . . . . . . . . . . Machines Dismantled . | . . . . . . . . . . . . . . . . . . Machines Sabotaged . | . . . . . . . . . . . . . . . . . . Overloaded Fab Kills . | . . . . . . . . . . . . . . . . . . Hacking | -11 -10 -10 -9 -9 -7 -6 -6 -6 -6 -5 -5 -5 -4 -4 -4 -3 -3 --------- Run | Yrd Mat Min Mat Min Zio Pro Fac Was Fac Fac Upp Upp Fac Upp Upp Res Arm Machines Accessed 12 | . 2 . 2 . . . 1 . 2 1 1 1 1 . . 1 . Terminals 4 | . 2 . 2 . . . . . . . . . . . . . . Fabricators 1 | . . . . . . . 1 . . . . . . . . . . Repair Stations 3 | . . . . . . . . . 1 . . . 1 . . 1 . Recycling Units 2 | . . . . . . . . . 1 1 . . . . . . . Scanalyzers . | . . . . . . . . . . . . . . . . . . Garrison Access . | . . . . . . . . . . . . . . . . . . Total Hacks 16 | . 2 . 4 . . . 1 . 2 2 1 1 1 . . 2 . Successful 13 | . 1 . 4 . . . 1 . 2 1 1 1 1 . . 1 . Failed 3 | . 1 . . . . . . . . 1 . . . . . 1 . Catastrophic . | . . . . . . . . . . . . . . . . . . Database Lockouts . | . . . . . . . . . . . . . . . . . . Manual 12 | . . . . . . . 1 . 9 . . . . . . . 2 Terminals 6 | . 2 . 4 . . . . . . . . . . . . . . Fabricators 1 | . . . . . . . 1 . . . . . . . . . . Repair Stations 4 | . . . . . . . . . 1 . . . 1 . . 2 . Recycling Units 3 | . . . . . . . . . 1 2 . . . . . . . Scanalyzers . | . . . . . . . . . . . . . . . . . . Garrison Access . | . . . . . . . . . . . . . . . . . . Terminal Hacks 7 | . 1 . 4 . . . . . . . 1 1 . . . . . Open Door 2 | . . . . . . . . . . . 1 1 . . . . . Branch Access Points 1 | . . . 1 . . . . . . . . . . . . . . Emergency Access Points 3 | . 1 . 2 . . . . . . . . . . . . . . Locate Traps 1 | . . . 1 . . . . . . . . . . . . . . Fabricator Hacks 1 | . . . . . . . 1 . . . . . . . . . . Network Status 1 | . . . . . . . 1 . . . . . . . . . . Repair Station Hacks 3 | . . . . . . . . . 1 . . . 1 . . 1 . Scan Component 3 | . . . . . . . . . 1 . . . 1 . . 1 . Recycling Unit Hacks 2 | . . . . . . . . . 1 1 . . . . . . . Report Inventory 2 | . . . . . . . . . 1 1 . . . . . . . Scanalyzer . | . . . . . . . . . . . . . . . . . . Garrison Access Hacks . | . . . . . . . . . . . . . . . . . . Unauthorized Hacks . | . . . . . . . . . . . . . . . . . . Terminals . | . . . . . . . . . . . . . . . . . . Fabricators . | . . . . . . . . . . . . . . . . . . Repair Stations . | . . . . . . . . . . . . . . . . . . Recycling Units . | . . . . . . . . . . . . . . . . . . Scanalyzers . | . . . . . . . . . . . . . . . . . . Garrison Access . | . . . . . . . . . . . . . . . . . . Data Cores Recovered . | . . . . . . . . . . . . . . . . . . Used . | . . . . . . . . . . . . . . . . . . Hacking Detections 5 | . 1 . 1 . . . . . 1 1 . . . . . 1 . Full Trace Events . | . . . . . . . . . . . . . . . . . . Feedback Events . | . . . . . . . . . . . . . . . . . . Feedback Blocked . | . . . . . . . . . . . . . . . . . . Robot Schematics Acquired . | . . . . . . . . . . . . . . . . . . Robots Built . | . . . . . . . . . . . . . . . . . . Authchips . | . . . . . . . . . . . . . . . . . . Time . | . . . . . . . . . . . . . . . . . . Total Robot Build Rating . | . . . . . . . . . . . . . . . . . . Part Schematics Acquired . | . . . . . . . . . . . . . . . . . . Parts Built . | . . . . . . . . . . . . . . . . . . Authchips . | . . . . . . . . . . . . . . . . . . Time . | . . . . . . . . . . . . . . . . . . Total Part Build Rating . | . . . . . . . . . . . . . . . . . . Parts Repaired . | . . . . . . . . . . . . . . . . . . Time . | . . . . . . . . . . . . . . . . . . Parts Recycled . | . . . . . . . . . . . . . . . . . . Recycled Matter . | . . . . . . . . . . . . . . . . . . Retrieved Matter . | . . . . . . . . . . . . . . . . . . Retrieved Components . | . . . . . . . . . . . . . . . . . . Parts Scanalyzed . | . . . . . . . . . . . . . . . . . . Part Schematics Acquired . | . . . . . . . . . . . . . . . . . . Parts Damaged . | . . . . . . . . . . . . . . . . . . Bothacking | -11 -10 -10 -9 -9 -7 -6 -6 -6 -6 -5 -5 -5 -4 -4 -4 -3 -3 ------------ Run | Yrd Mat Min Mat Min Zio Pro Fac Was Fac Fac Upp Upp Fac Upp Upp Res Arm Used RIF Installer . | . . . . . . . . . . . . . . . . . . Robots Hacked . | . . . . . . . . . . . . . . . . . . Non-combat . | . . . . . . . . . . . . . . . . . . Combat . | . . . . . . . . . . . . . . . . . . Robot Hacks Applied . | . . . . . . . . . . . . . . . . . . Relay Couplers Released . | . . . . . . . . . . . . . . . . . . Fabnet Peak Effective % . | . . . . . . . . . . . . . . . . . . Robots Rewired . | . . . . . . . . . . . . . . . . . . Allies Hacked 1 | . . . . . . 1 . . . . . . . . . . . Hacks Repelled . | . . . . . . . . . . . . . . . . . . Allies | -11 -10 -10 -9 -9 -7 -6 -6 -6 -6 -5 -5 -5 -4 -4 -4 -3 -3 -------- Run | Yrd Mat Min Mat Min Zio Pro Fac Was Fac Fac Upp Upp Fac Upp Upp Res Arm Total Allies 8 | . . . . . 7 . . . 1 . . . . . . . . Largest Group 7 | . . . . . 7 6 . . 1 1 . . . . . . . Highest-Rated Group 228 | . . . . . 228 214 . . 27 27 . . . . . . . Highest-Rated Ally 40 | . . . . . 40 40 . . 27 27 . . . . . . . Zionite Dispatches 2 | . . . . . . . . . 2 . . . . . . . . Recon 1 | . . . . . . . . . 1 . . . . . . . . Hacking Resupply 1 | . . . . . . . . . 1 . . . . . . . . Total Orders . | . . . . . . . . . . . . . . . . . . Ally Attacks 46 | . . . . . . 46 . . . . . . . . . . . Total Damage 1452 | . . . . . . 1452 . . . . . . . . . . . Kills 11 | . . . . . . 11 . . . . . . . . . . . Allies Corrupted 1 | . . . . . . 1 . . . . . . . . . . . Allies Melted . | . . . . . . . . . . . . . . . . . . Intel | -11 -10 -10 -9 -9 -7 -6 -6 -6 -6 -5 -5 -5 -4 -4 -4 -3 -3 ------- Run | Yrd Mat Min Mat Min Zio Pro Fac Was Fac Fac Upp Upp Fac Upp Upp Res Arm Active Infowar (turns) 1263 | . 253 193 223 . . . 100 . 304 185 . . . . . . 5 Optics 185 | . . . . . . . . . . 185 . . . . . . . Sensors 129 | . . . . . . . . . 129 . . . . . . . . Terrain 404 | . . . . . . . 100 . 304 . . . . . . . . Cloaking 5 | . . . . . . . . . . . . . . . . . 5 ECM 669 | . 253 193 223 . . . . . . . . . . . . . . Robot Analysis Total . | . . . . . . . . . . . . . . . . . . Derelict Logs Recovered 13 | . . 2 . 1 1 1 . . . . 3 3 . 2 . . . Drone Launches 4 | . . . . . . . . . . . 3 1 . . . . . Drone Recoveries 4 | . . . . . . . . . . . 1 3 . . . . . Zionite Intel Received 1 | . . . . . . . . . 1 . . . . . . . . Trap Installations 1 | . . . . . . . . . 1 . . . . . . . . Exploration | -11 -10 -10 -9 -9 -7 -6 -6 -6 -6 -5 -5 -5 -4 -4 -4 -3 -3 ------------- Run | Yrd Mat Min Mat Min Zio Pro Fac Was Fac Fac Upp Upp Fac Upp Upp Res Arm Turns Passed 6230 | 70 266 193 332 181 563 381 197 92 938 209 319 325 293 1404 114 91 262 Spaces Moved 7828 | 43 128 120 294 513 1020 497 330 151 1279 320 604 434 246 1212 77 147 413 Core 811 | 13 . . 1 . . . 32 151 26 . . . . . 33 147 408 Treads 416 | 30 128 120 118 . . . 20 . . . . . . . . . . Legs 29 | . . . . . . . . . . . . . . . 24 . 5 Wheels . | . . . . . . . . . . . . . . . . . . Hover 4089 | . . . . . . . . . 1253 320 604 434 246 1212 20 . . Flight 2483 | . . . 175 513 1020 497 278 . . . . . . . . . . Fastest Speed 29 | 50 160 160 32 32 32 32 29 50 38 34 34 36 112 112 50 50 50 Average Speed 60 | 126 160 160 87 33 33 32 45 54 43 34 34 64 112 112 89 50 51 Slowest Speed 300 | 160 160 160 300 34 34 32 160 100 92 34 38 112 112 112 200 50 150 Overloaded Moves . | . . . . . . . . . . . . . . . . . . Propulsion Burnouts . | . . . . . . . . . . . . . . . . . . Robots Hopped 1 | . . . . . . . 1 . . . . . . . . . . Potential Cave-ins . | . . . . . . . . . . . . . . . . . . Cave-ins Triggered . | . . . . . . . . . . . . . . . . . . Exploration Rate (%) 39 | 4 25 43 37 87 87 60 9 87 26 6 72 38 8 88 15 4 16 Regions Visited 17 Branch Regions 9 Pre-discovered Areas 4 | . . . . . 1 . . . . . . 2 . 1 . . . Known Exits Taken 7 | . . . 1 . . . . . 1 1 1 1 1 1 . . . Unknown Exits Taken 8 | 1 1 1 . 1 1 1 . . . . . . . . 1 1 . Scrap Searched 13 | . . 1 . 1 3 1 . . . . 2 2 . 3 . . . Spaces Dug . | . . . . . . . . . . . . . . . . . . Terrain Destroyed 22 | . . . . . . . . . 2 . 7 2 . 6 5 . . Melee . | . . . . . . . . . . . . . . . . . . Projectile 22 | . . . . . . . . . 2 . 7 2 . 6 5 . . AOE . | . . . . . . . . . . . . . . . . . . Terrain Rammed . | . . . . . . . . . . . . . . . . . . Walls Destroyed . | . . . . . . . . . . . . . . . . . . Machines Disabled . | . . . . . . . . . . . . . . . . . . Actions | -11 -10 -10 -9 -9 -7 -6 -6 -6 -6 -5 -5 -5 -4 -4 -4 -3 -3 --------- Run | Yrd Mat Min Mat Min Zio Pro Fac Was Fac Fac Upp Upp Fac Upp Upp Res Arm Total 9103 | 59 164 121 356 519 1238 713 361 161 1623 421 682 464 262 1236 104 159 460 Wait 777 | 2 16 . . . 210 206 2 . 204 86 39 2 . 6 2 1 1 Move 7810 | 42 127 119 293 512 1019 496 328 150 1278 319 603 433 245 1211 76 146 413 Hop 1 | . . . . . . . 1 . . . . . . . . . . Pick Up 150 | 8 6 2 17 2 4 3 4 4 40 6 11 8 9 5 . 6 15 Fast Attach . | . . . . . . . . . . . . . . . . . . Attach 97 | 6 1 . 13 1 1 1 11 3 20 4 7 4 2 1 9 2 11 Detach 12 | . . . 2 . . . 4 3 . . . . . . . . 3 Swap 27 | . 2 . 3 2 1 . . . 8 2 1 3 4 1 . . . Drop 75 | 1 . . 15 2 3 3 1 1 23 4 4 6 2 1 . 1 8 Fire 112 | . 12 . 13 . . 4 10 . 25 . 17 8 . 11 10 . 2 Melee 6 | . . . . . . . . . . . . . . . . 3 3 Ram 9 | . . . . . . . . . . . . . . . 5 . 4 Kick 2 | . . . . . . . . . . . . . . . 2 . . Crush . | . . . . . . . . . . . . . . . . . . Escape Stasis 25 | . . . . . . . . . 25 . . . . . . . . Rewire . | . . . . . . . . . . . . . . . . . . Trap . | . . . . . . . . . . . . . . . . . . Miscellaneous . | . . . . . . . . . . . . . . . . . . Route ------- -11/Scrapyard -10/Materials -10/Mines -9/Materials -9/Mines (discovered 3 exits: [*Mat x2] / [*Zio]) -7/Zion -6/Proximity Caves -6/Factory (discovered 2 exits: Fac x2) -6/Waste -6/Factory -5/Factory -5/Upper Caves -5/Upper Caves -4/Factory -4/Upper Caves -4/Upper Caves -3/Research -3/Armory History --------- Turn | Location | Event 10 | -11/Scrapyard | Discovered new exit (range 15) 71 | -11/Scrapyard | Entered Materials 270 | -10/Materials | Discovered new exit (range 7) 316 | -10/Materials | Build established: Mutant 337 | -10/Materials | Entered Mines 414 | -10/Mines | YI-UF0 nonchalantly dropped a Grenade Launcher on the ground 434 | -10/Mines | Learned location of 1 exit from Materials 484 | -10/Mines | Learned 2 Materials zone layouts 498 | -10/Mines | Discovered new exit (range 6) 530 | -10/Mines | Entered Materials 530 | -9/Materials | Evolved 2 slots: Utility x2 531 | -9/Materials | Identified exit to Mines 851 | -9/Materials | Lost 3 parts (1p1n1w) 862 | -9/Materials | Entered Mines 890 | -9/Mines | Received a Rocket Launcher from a helpful Derelict 899 | -9/Mines | Learned 8 Materials zone layouts 928 | -9/Mines | Discovered new exit (range 5) 936 | -9/Mines | Joined a pair of Derelicts in attacking an 0b10 outpost 960 | -9/Mines | Discovered new exit (range 8) 1025 | -9/Mines | A Derelict revealed a hidden shortcut to a safe place 1043 | -9/Mines | Entered Zion 1065 | -7/Zion | Given the Hacking Drone Bay 1066 | -7/Zion | Found Prototype Device 1150 | -7/Zion | Learned location of Storage (-7) 1154 | -7/Zion | Gained Derelict followers 1179 | -7/Zion | Build established: Hacker-Mutant 1235 | -7/Zion | Met Imprinter 1242 | -7/Zion | Imprinted 1244 | -7/Zion | Declared Zion's savior 1358 | -7/Zion | Visited the Megawrench Repair Shop 1358 | -7/Zion | Megawrench repaired 4 parts 1376 | -7/Zion | Learned Factory repair station intel 1486 | -7/Zion | Learned location of 1 exit from Factory 1490 | -7/Zion | Found Prototype Device 1501 | -7/Zion | Discovered new exit (range 16) 1606 | -7/Zion | Entered Proximity Caves 1606 | -6/Proximity Caves | Accompanied by 7 allies 1801 | -6/Proximity Caves | Build established: Hacker-Sprinter 1864 | -6/Proximity Caves | Learned location of 1 exit from Factory 1961 | -6/Proximity Caves | Spotted B-75 Beast 1984 | -6/Proximity Caves | Discovered new exit (range 10) 1987 | -6/Proximity Caves | Entered Factory 1987 | -6/Factory | Evolved 6 slots: Propulsion x2, Utility x4 1988 | -6/Factory | Identified exit to Factory 1989 | -6/Factory | Loaded intel: 6 repair station locations 1991 | -6/Factory | Identified Hacking Drone Bay 1992 | -6/Factory | Identified Mobile Refinery Mk. CCLXVII 2179 | -6/Factory | Core integrity fell below 50% 2184 | -6/Factory | Sucked down chute 2184 | -6/Factory | Entered Waste 2193 | -6/Waste | Spotted C-40 Crusher 2199 | -6/Waste | EMP discharged 2199 | -6/Waste | Crushed by Compactor (1 part destroyed, 2 dropped) 2206 | -6/Waste | Spotted C-40 Crusher 2213 | -6/Waste | Spotted C-40 Crusher 2222 | -6/Waste | Spotted C-40 Crusher 2227 | -6/Waste | Spotted C-40 Crusher 2230 | -6/Waste | Lost 12 parts (2p4n4u2w) 2251 | -6/Waste | Spotted C-40 Crusher 2266 | -6/Waste | Discovered new exit (range 13) 2276 | -6/Waste | Entered Factory 2518 | -6/Factory | Build established: Mutant 2619 | -6/Factory | Zion Recon squad teleported in 2651 | -6/Factory | Core integrity fell below 20% 2963 | -6/Factory | Build established: Hacker-Mutant 3055 | -6/Factory | Retrieved Zion intel report: Trap Installations 3056 | -6/Factory | Zion Hacking Resupply teleported in 3115 | -6/Factory | Discovered exit to Factory (range 13) 3214 | -6/Factory | Entered another Factory area 3214 | -5/Factory | Accompanied by 1 ally 3214 | -5/Factory | Evolved 2 slots: Propulsion x1, Utility x1 3323 | -5/Factory | Discovered new exit (range 21) 3401 | -5/Factory | Identified exit to Upper Caves 3423 | -5/Factory | Entered Upper Caves 3459 | -5/Upper Caves | Attracted the attention of an 0b10 checkpoint 3510 | -5/Upper Caves | Lost 5 parts (4u1w) 3540 | -5/Upper Caves | Learned Factory terminal intel 3545 | -5/Upper Caves | Encountered a Warlord checkpoint 3559 | -5/Upper Caves | Learned Factory terminal intel 3635 | -5/Upper Caves | Identified exit to Upper Caves 3742 | -5/Upper Caves | Entered another Upper Caves area 3742 | -5/Upper Caves | Accompanied by 2 allies 3744 | -5/Upper Caves | Learned location of Armory (-3) 3746 | -5/Upper Caves | Learned Factory security intel 3758 | -5/Upper Caves | Discovered new exit (range 14) 3769 | -5/Upper Caves | Identified exit to Factory 3884 | -5/Upper Caves | Attracted the attention of an 0b10 checkpoint 3968 | -5/Upper Caves | Spotted B-75 Beast 4067 | -5/Upper Caves | Entered Factory 4067 | -4/Factory | Evolved 2 slots: Utility x2 4069 | -4/Factory | Loaded intel: 27 terminal locations 4178 | -4/Factory | Found Prototype Hackware 4179 | -4/Factory | Identified Exp. System Shield 4306 | -4/Factory | Discovered new exit (range 5) 4309 | -4/Factory | Identified exit to Upper Caves 4360 | -4/Factory | Entered Upper Caves 4416 | -4/Upper Caves | Learned location of Quarantine (-3) 4434 | -4/Upper Caves | Learned Research garrison access intel 4470 | -4/Upper Caves | Attracted the attention of an 0b10 checkpoint 4972 | -4/Upper Caves | Encountered a Warlord checkpoint 5713 | -4/Upper Caves | Discovered new exit (range 9) 5729 | -4/Upper Caves | Identified exit to Upper Caves 5764 | -4/Upper Caves | Entered another Upper Caves area 5766 | -4/Upper Caves | Attracted the attention of an 0b10 outpost 5860 | -4/Upper Caves | Core integrity fell below 50% 5873 | -4/Upper Caves | Core integrity fell below 20% 5874 | -4/Upper Caves | Discovered new exit (range 9) 5878 | -4/Upper Caves | Entered Research 5878 | -3/Research | Evolved 2 slots: Power x1, Weapon x1 5879 | -3/Research | Loaded intel: 4 garrison access locations 5884 | -3/Research | Found Quantum Capacitor 5891 | -3/Research | Lost 22 parts (2p5n11u4w) 5894 | -3/Research | Discovered new exit (range 16) 5969 | -3/Research | Entered Armory 6138 | -3/Armory | Build established: Mutant 6207 | -3/Armory | Core integrity fell below 50% 6225 | -3/Armory | Core integrity fell below 20% 6231 | -3/Armory | Destroyed by Y-72 Warden with Quantum Rifle Last Messages --------------- Programmers report to Armory Zone 3P. Enh. Force Lance severed. Slammed into C-35 Carver. Slug penetrates C-35 Carver. Railgun severed. Slammed into C-35 Carver. C-35 Carver destroyed. [Achievement: Fist Fight] Acquired 35 matter. Acquired Mic. Nuclear Core. Critical hit (Burn: +50). Acquired Imp. Surge Thruster. Compression Vault explodes. C-35 Carver destroyed. G-73 Enforcer destroyed. C-35 Carver destroyed. G-67 Veteran destroyed. Acquired 23 matter. Acquired Imp. Surge Thruster. Acquired Mic. Nuclear Core. Map ----- +----------------------------------------------------+ | ?????????????????????????????????# #?? | | ?????????????????????????????????# #?? | | ?????????????????????????????????# #?? | | ?????????????????????????????????# #?? | | ?????????????????????????????????# #?? | | ?????????????????????????????????# #?? | | ????????????????????############## #?? | | ????????????????????# # #?? | | ????????????????????# # #?? | | ????????????????????# ##? | | ????????????????????# """"" # ## | | ????????????????????# "???" # # | | ????????????????????# "???" # | | ????????????????????# "???" # | | ????????????????????# "???" # | | ????????????????????# """"" ## | | ???###########??????# # ## | | ???# #####??# # | | ???# ##""#??# ## | | ???# === ##T"################ ##? | | ???# === / Yo ^ #? | | ???# === # = ##? | | ???# # ###########! # ##? | | ???# # #????# !%%[gg # #?? | | ???# # #????# / * g +^ #?? | | ???##+######## #????# @ # #?? | | ????# #??????# #????# %[ # #?? | | ????# #??????# #????# % #?? | | ????# #??????# #????# / #?? | | ????# #??????# #????# #?? | | ????# #??????# #????# ##?? | | ???? ?##### !?????# # #??? | | ???? ? ?????# # #??? | | ???? ! #?? ?????# # #??? | | ####### #??#?????# # #??? | | #????????############## #??? | | #????????#"""""""""""## #??? | | ########## """"T"""" ## #??? | | #??? | | ## ############## #??? | | ???# #???# # #??? | | ???# #???# """ # """"" #??? | | ???# #???# """ ! # """"" #??? | | ???# #???# """ # """"" #??? | | ???# #???# + """"" #??? | | ???# #???# "F "" # "" "" #??? | | ???# ##### """"" # ""F"" #??? | | ???# + """"" # """ #??? | | ???####### ##################??? | | ?????????##########???????????????????? | +----------------------------------------------------+ Best States ------------- Heat Dissipation 46 Energy Generation 18 Energy Capacity 650 Matter Stores 300 Matter Capacity 300 Sight Range 22 Robot Scan Range 16 Terrain Scan Range 20 Terrain Scan Density 10 ECM Strength 2 Cloak Strength 2 Additional Mass Support 12 Base Temperature (-) 200 Corruption Containment 8 Armor Coverage 225 Phase Shifting 5 Evasion (%) 67 Targeting Accuracy 22 Target Analysis 8 Recoil Reduction 2 Offensive Hacking 40 Defensive Hacking 32 Item Schematics ----------------- None Robot Schematics ------------------ None Fabricated ------------ Nothing Repaired ---------- Nothing Alien Tech Used ----------------- None Achievements -------------- Fist Fight Challenges ------------ None Game ------ Seed ReflectiveChipReplica Manual? 0 Play Time 02:32:24 Cumulative 45.9 hours Start 2025.07.04 @ 16:20:05 End 2025.07.05 @ 08:59:21 Sessions 3 Manual Loads 0 Difficulty Rogue Special Mode None Game No. 49 Rogue 39 Adventurer 10 Explorer 0 Win Type - Total 1 Types 1/0/0/0/0/0/0/0/0/0 Lore% 23 Gallery% 31 Achievement% 26 Wizard Run 0 Options --------- Layout 1 ASCII 0 Keyboard 0 Movement Numpad Keybinds 0 Fullscreen 1 Font 24/Smallcaps Map View 50x35 Zoom Use 0% Tactical HUD 0 Map Filters NONE Filters NONE Steam 1 RUN: d115c224-cbd4-4a05-9900-3cb3e9cc5744